{"text_format":"1","workbook":"xlsx","n_sheets":2,"sheets":["RATING","COMMENTS"],"not_rendered":{"charts":0,"images":23,"macros":1,"external_links":0,"defined_names":2,"comments":1,"pivot_tables":0},"unopened":[],"bounds":{"document_bytes":16777216,"sheet_cells":100000,"rows_first":2000,"rows_last":500,"rows_between":2000,"halvings":0,"cell_chars":16384,"cell_head_chars":4096},"cells_cut":0,"cells_raw":0,"read":"whole","date_system":"1900"}

{"sheet":"RATING","index":0,"n_rows":41,"n_cols":8,"rows_kept":41,"cut":false,"hidden":false,"merged":[[0,1,0,6],[26,0,26,7],[11,0,11,7],[12,0,12,7],[1,0,1,7],[3,0,3,7],[5,1,5,3],[4,2,4,7],[6,2,6,4],[6,5,6,7],[7,1,7,2],[9,6,9,7],[7,6,7,7],[9,1,9,4],[8,2,8,4]]}
[]
[]
[]
["Tally Sheet"]
["Name of Contractor:"]
["PCN:",null,null,null,"            Prime Contractor",null,"        Sub Contractor"]
["Contractor's Address:"]
["City: ",null,null,"State:",null,"Phone:"]
["Fed/State Project  Number:",null,null,null,null,null,"Completion Date:"]
["Type of Work:",null,null,null,null,"Cost:"]
[]
["Evaluation of Contractor Performance On This Project By The Resident Engineer: Rating Section"]
["Part 1 - Contractor Work Performance"]
[]
[null,null,"Evaluation  Items",null,null,null,null,"Input Points"]
["1.Quality of Work (including performance of subcontractor(s))",null,null,null,null,null,5,"N/A"]
["2.Quality of Work (excluding performance of subcontractor(s))",null,null,null,null,null,4,"N/A"]
["3.Meetings of Contract Dates (including approved extensions)",null,null,null,null,null,3,"N/A"]
["4.Job Closeout Activities (Punch List, Clean-Up, Paperwork, etc)",null,null,null,null,null,2,"N/A"]
["5.Coordination & Cooperation with DOH and other government Agency",null,null,null,null,null,1,"N/A"]
["6.Coordination & Cooperation with other Contractor(s), Sub(s) and Utilities",null,null,null,null,null,"N/A","N/A"]
["7.Coordination&Cooperation with General Public (Motorists & Property Owners)",null,null,null,null,null,null,"N/A"]
["8.Public Safety and Traffic Control",null,null,null,null,null,null,"N/A"]
["9. Workforce Safety Practices",null,null,null,null,null,null,"N/A"]
["10. Compliance with Environmental Requirements",null,null,null,null,null,null,"N/A"]
[]
["Part 2 - Contractor Project Management and Administration"]
[]
["1.Project Supervisory Personnel",null,null,null,null,null,null,"N/A"]
["2. Project Technical Staff",null,null,null,null,null,null,"N/A"]
["3. Project Craft Workforce",null,null,null,null,null,null,"N/A"]
["4.Project Organization (Home Office Support and Organization)",null,null,null,null,null,null,"N/A"]
["5.Project Submittals",null,null,null,null,null,null,"N/A"]
["6.Equipment",null,null,null,null,null,null,"N/A"]
["7.Jobsite Housekeeping",null,null,null,null,null,null,"N/A"]
[]
[null,null,null,null,"Sum of Points",null,0]
[null,null,null,null,"Maximum Possible Points",null,0]
[null,null,null,null,"Final Rating",null,5]
["Project Engineer",null,null,null,"Date"]
["District"]

{"sheet":"COMMENTS","index":1,"n_rows":62,"n_cols":8,"rows_kept":62,"cut":false,"hidden":false,"merged":[[61,1,61,7],[23,1,23,7],[56,2,56,4],[57,1,57,3],[57,6,57,7],[54,1,54,4],[25,1,25,7],[27,1,27,7],[55,6,55,7],[52,1,52,7],[12,0,12,7],[13,0,13,7],[37,0,37,7],[17,1,17,7],[54,6,54,7],[55,1,55,3],[48,1,48,7],[50,1,50,7],[44,1,44,7],[46,1,46,7],[1,0,1,7],[0,1,0,6],[2,0,2,7],[5,2,5,7],[40,1,40,7],[42,1,42,7],[8,6,8,7],[10,1,10,4],[33,1,33,7],[35,1,35,7],[29,1,29,7],[31,1,31,7],[6,1,6,3],[7,2,7,7],[10,6,10,7],[8,1,8,2],[19,1,19,7],[21,1,21,7]]}
[null,null,null,null,null,null,null,{"$f":"RATING!H1","v":0}]
[]
["Tally Sheet"]
[]
[]
["Name of Contractor:",null,{"$f":"RATING!C5","v":0}]
["CID:",{"$f":"RATING!B6","v":0},null,null,"            Prime Contractor",null,"        Sub Contractor"]
["Contractor's Address:",null,{"$f":"RATING!C7","v":0}]
["City: ",{"$f":"RATING!B8","v":0},null,"State:",{"$f":"RATING!E8","v":0},"Phone:",{"$f":"RATING!G8","v":0}]
["Fed/State Project Number:",null,{"$f":"RATING!C9","v":0},null,null,null,"Completion Date:",{"$f":"RATING!H9","v":"00:00:00"}]
["Type of Work:",{"$f":"RATING!B10","v":0},null,null,null,"Cost:",{"$f":"RATING!G10","v":0}]
[]
["Evaluation of Contractor Performance On This Project By The Resident Engineer: Comments Section"]
["Part 1 - Contractor Work Performance"]
[]
[null,null,"Evaluation  Items"]
["1.Quality of Work (including performance of subcontractor(s))",null,null,null,null,{"$f":"RATING!H16","v":"N/A"},5]
["Comment:"]
["2.Quality of Work (excluding performance of subcontractor(s))",null,null,null,null,{"$f":"RATING!H17","v":"N/A"},4]
["Comment:"]
["3.Meetings of Contract Dates (including approved extensions)",null,null,null,null,null,{"$f":"RATING!H18","v":"N/A"}]
["Comment:"]
["4.Job Closeout Activities (Punch List, Clean-Up, Paperwork, etc)",null,null,null,null,null,null,{"$f":"RATING!H19","v":"N/A"}]
["Comment:"]
["5.Coordination & Cooperation with DOH and other government Agency",null,null,null,null,null,null,{"$f":"RATING!H20","v":"N/A"}]
["Comment:"]
["6.Coordination & Cooperation with other Contractor(s), Sub(s) and Utilities",null,null,null,null,null,null,{"$f":"RATING!H21","v":"N/A"}]
["Comment:"]
["7.Coordination&Cooperation with General Public (Motorists & Property Owners)",null,null,null,null,null,{"$f":"RATING!H22","v":"N/A"}]
["Comment:"]
["8.Public Safety and Traffic Control",null,null,null,null,null,{"$f":"RATING!H23","v":"N/A"}]
["Comment:"]
["9. Workforce Safety Practices",null,null,null,null,null,{"$f":"RATING!H24","v":"N/A"}]
["Comment:"]
["10. Compliance with Environmental Requirements",null,null,null,null,null,{"$f":"RATING!H25","v":"N/A"}]
["Comment:"]
[]
["Part 2 - Contractor Project Management and Administration"]
[]
["1.Project Supervisory Personnel",null,null,null,null,null,{"$f":"RATING!H29","v":"N/A"}]
["Comment:"]
["2. Project Technical Staff",null,null,null,null,null,{"$f":"RATING!H30","v":"N/A"}]
["Comment:"]
["3. Project Craft Workforce",null,null,null,null,null,{"$f":"RATING!H31","v":"N/A"}]
["Comment:"]
["4.Project Organization (Home Office Support and Organization)",null,null,null,null,null,{"$f":"RATING!H32","v":"N/A"}]
["Comment:"]
["5.Project Submittals",null,null,null,null,null,{"$f":"RATING!H33","v":"N/A"}]
["Comment:"]
["6.Equipment",null,null,null,null,null,{"$f":"RATING!H34","v":"N/A"}]
["Comment:"]
["7.Jobsite Housekeeping",null,null,null,null,null,{"$f":"RATING!H35","v":"N/A"}]
["Comment:"]
[]
["Project Engineer",{"$f":"RATING!B40","v":0},null,null,null,"          District:",{"$f":"RATING!B41","v":0}]
["Signature:",null,null,null,null,"          Date:",{"$f":"RATING!F40","v":"00:00:00"}]
["Chief District Engineer:"]
["Signature:",null,null,null,null,"          Date:"]
[]
[]
[]
["Additional Comments:"]